fUSD/lending_fUSD_20251105
["ID","MTS","AMOUNT","RATE_DAILY","PERIOD"]
[393244352,1762373777343,-234.2882,0.000161,2]
[393244353,1762373781255,-275.25921738,0.000161,2]
[393244354,1762373782574,-1271.30683854,0.000161,2]
[393244355,1762373782916,-2542.61367708,0.000161,2]
[393244356,1762373783027,-4914.78264584,0.000161,2]
[393244357,1762373810213,1680.97165084,0.000161,2]
[393244358,1762373852316,234.2882,0.000161,2]
[393244361,1762373948027,513.96908517,0.0001615,2]
[393244365,1762374114239,915.5801,0.000161,2]
[393244366,1762374158101,6655.20096399,0.000161,2]
[393244367,1762374158126,2239.93140042,0.000161,2]
[393244368,1762374213362,-151.0,0.0001619,2]
[393244369,1762374213384,-151.0,0.0001619,2]
[393244370,1762374213406,-151.0,0.0001619,2]
[393244371,1762374213427,-151.0,0.0001619,2]
[393244372,1762374213448,-151.0,0.0001619,2]
[393244373,1762374213469,-151.0,0.0001619,2]
[393244374,1762374213491,-94.0,0.0001619,2]
[393244375,1762374216464,610.0,0.00016093,2]
[393244376,1762374320487,2713.96249219,0.000161,2]
[393244377,1762374384842,4436.11610739,0.000161,2]
[393244378,1762374384865,9897.74739261,0.000161,2]
[393244379,1762374491170,102.26260739,0.00015658,2]
[393244380,1762374491191,299.27739261,0.00015658,2]
[393244381,1762374505924,2256.14732764,0.0001421,7]
[393244383,1762374511847,7444.58527975,0.00015,3]
[393244384,1762374511870,10000.01,0.00015,3]
[393244385,1762374511892,10000.01,0.00015,3]
[393244386,1762374511914,10000.01,0.00015,3]
[393244387,1762374511936,10000.01,0.00015,3]
[393244388,1762374511957,10000.01,0.00015,3]
[393244389,1762374511982,10000.01,0.00015,3]
[393244390,1762374512004,10000.01,0.00015,3]
[393244391,1762374512027,10000.01,0.00015,3]
[393244392,1762374512049,10000.01,0.00015,3]
[393244393,1762374512074,51721.39242253,0.00015,3]
[393244401,1762374545449,8005.61912796,0.000161,2]
[393244402,1762374559119,-1000.0,0.00016157,2]
[393244403,1762374559140,-250.0,0.00016157,2]
[393244404,1762374559160,-195.0,0.00016157,2]
[393244405,1762374559184,-201.78,0.00016157,2]
[393244406,1762374559206,-152.28098078,0.00016161,2]
[393244407,1762374559227,-250.0,0.00016168,2]
[393244408,1762374559248,-195.0,0.0001618,2]
[393244409,1762374559271,-208.0,0.0001619,2]
[393244410,1762374559291,-151.0,0.0001619,2]
[393244411,1762374559312,-151.0,0.0001619,2]
[393244412,1762374559332,-151.0,0.0001619,2]
[393244413,1762374559352,-151.0,0.0001619,2]
[393244414,1762374559371,-151.0,0.0001619,2]
[393244415,1762374559395,-1200.0,0.00016198,2]
[393244416,1762374559415,-472.27503322,0.00016199,2]
[393244417,1762374613206,174.78,8.238e-05,2]
[393244418,1762374613418,174.78,9.821e-05,2]
[393244419,1762374613647,174.78,0.00011404,2]
[393244420,1762374613867,174.78,0.00012987,2]
[393244421,1762374614753,174.78,0.0001457,2]
[393244429,1762374631636,-174.78,0.00016153,2]
[393244430,1762374631646,-292.64,0.00016156,2]
[393244431,1762374631655,-500.0,0.00016173,2]
[393244432,1762374631664,-300.0,0.00016198,2]
[393244433,1762374631673,-1200.0,0.00016198,2]
[393244434,1762374631683,-250.0,0.00016199,2]
[393244435,1762374631692,-27.72496678,0.00016199,2]
[393244436,1762374631701,-160.49083682,0.00016199,2]
[393244437,1762374631710,-500.0,0.00016199,2]
[393244438,1762374631719,-500.0,0.00016199,2]
[393244439,1762374631729,-500.0,0.00016199,2]
[393244440,1762374631739,-500.0,0.00016199,2]
[393244441,1762374631748,-170.35975845,0.00016199,2]
[393244442,1762374631757,-379.02356425,0.00016199,2]
[393244443,1762374631766,-58376.95004855,0.000162,2]
[393244499,1762374635880,-625.92812456,0.000162,2]
[393244502,1762374635891,-1004.629992,0.000162,2]
[393244559,1762374637522,-3740.99577396,0.000162,2]
[393244560,1762374637577,-285.06134771,0.000162,2]
[393244561,1762374637592,-499.21534147,0.000162,2]
[393244562,1762374637603,-2621.265459,0.000162,2]
[393244563,1762374637633,-980.6679587,0.000162,2]
[393244564,1762374637644,-1877.37012887,0.000162,2]
[393244565,1762374637655,-783.6137484,0.000162,2]
[393244575,1762374639663,-318326.04892599,0.000162,2]
[393244576,1762374639672,-1000.0,0.000162,2]
[393244577,1762374639682,-146241.77,0.000162,5]
[393244578,1762374639692,-652.4,0.00016261,2]
[393244579,1762374639702,-500.0,0.00016299,2]
[393244580,1762374639712,-581.94,0.00016299,2]
[393244581,1762374639722,-581.94,0.00016299,2]
[393244582,1762374639732,-4961.17,0.00016299,2]
[393244583,1762374639741,-150.99,0.00016299,2]
[393244584,1762374639750,-9999.99,0.00016299,2]
[393244585,1762374639760,-1482.32,0.00016299,2]
[393244586,1762374639769,-1043.61,0.00016299,2]
[393244587,1762374639779,-999.99,0.000163,2]
[393244588,1762374639789,-2713.96249218,0.000163,2]
[393244589,1762374639799,-8005.61912789,0.000163,2]
[393244590,1762374639808,-150.0,0.00016342,2]
[393244591,1762374639817,-152.28098073,0.00016378,2]
[393244592,1762374639826,-500.0,0.00016438,2]
[393244593,1762374639839,-166.66,0.00016464,2]
[393244594,1762374639849,-2713.96249218,0.000165,2]
[393244595,1762374639858,-8005.61912789,0.000165,2]
[393244596,1762374639868,-1963.1,0.00016539,2]
[393244597,1762374639877,-152.28098073,0.00016596,2]
[393244598,1762374639887,-837.01,0.000166,2]
[393244599,1762374639896,-5970.47692717,0.00016626,2]
[393244600,1762374639905,-163.15,0.00016668,2]
[393244602,1762374639915,-4042.43,0.00016675,2]
[393244604,1762374639924,-2713.96249218,0.000167,2]
[393244605,1762374639933,-8005.61912789,0.000167,2]
[393244606,1762374639943,-166.66,0.00016796,2]
[393244607,1762374639952,-152.28098073,0.00016813,2]
[393244608,1762374639962,-2713.96249218,0.000169,2]
[393244609,1762374639971,-8005.61912789,0.000169,2]
[393244610,1762374639980,-500.0,0.00016904,2]
[393244611,1762374639990,-150.15,0.00016965,2]
[393244612,1762374639999,-500.0,0.00016986,2]
[393244613,1762374640012,-15438.35,0.00016986,2]
[393244614,1762374640021,-250.0,0.00017,2]
[393244615,1762374640030,-313.28180496,0.00017,2]
[393244616,1762374640039,-700.0,0.00017,6]
[393244617,1762374640049,-152.28098073,0.00017031,2]
[393244618,1762374640058,-292.64,0.00017053,2]
[393244619,1762374640068,-500.0,0.00017099,2]
[393244620,1762374640077,-150.0,0.00017099,2]
[393244621,1762374640089,-150.0,0.00017099,2]
[393244622,1762374640098,-150.0,0.00017099,2]
[393244623,1762374640107,-500.0,0.00017099,2]
[393244624,1762374640117,-150.0,0.00017099,2]
[393244625,1762374640126,-150.0,0.00017099,2]
[393244626,1762374640135,-150.0,0.00017099,2]
[393244627,1762374640145,-150.0,0.00017099,2]
[393244628,1762374640154,-150.0,0.00017099,2]
[393244629,1762374640164,-150.0,0.00017099,2]
[393244630,1762374640174,-500.0,0.00017099,2]
[393244631,1762374640183,-500.0,0.00017099,2]
[393244632,1762374640193,-295.33139851,0.00017099,2]
[393244633,1762374640202,-150.0,0.00017099,2]
[393244634,1762374640212,-150.0,0.00017099,2]
[393244635,1762374640221,-500.0,0.00017099,2]
[393244636,1762374640230,-150.0,0.00017099,2]
[393244637,1762374640239,-150.0,0.00017099,2]
[393244638,1762374640249,-150.38503355,0.00017099,2]
[393244639,1762374640258,-150.0,0.00017099,2]
[393244640,1762374640268,-299.75148518,0.00017099,2]
[393244641,1762374640278,-500.0,0.00017099,2]
[393244642,1762374640287,-500.0,0.00017099,2]
[393244643,1762374640296,-500.0,0.00017099,2]
[393244644,1762374640305,-500.0,0.00017099,2]
[393244645,1762374640326,-500.0,0.00017099,2]
[393244646,1762374640340,-500.0,0.00017099,2]
[393244647,1762374640351,-500.0,0.00017099,2]
[393244648,1762374640361,-500.0,0.00017099,2]
[393244649,1762374640371,-500.0,0.00017099,2]
[393244650,1762374640381,-275.25921738,0.00017099,2]
[393244651,1762374640392,-500.0,0.00017099,2]
[393244652,1762374640401,-500.0,0.00017099,2]
[393244653,1762374640411,-277.35679052,0.00017099,2]
[393244654,1762374640421,-346.92554585,0.00017099,2]
[393244655,1762374640431,-2713.96249218,0.000171,2]
[393244656,1762374640441,-8005.61912789,0.000171,2]
[393244657,1762374640451,-1400.0,0.000171,6]
[393244658,1762374640460,-166.66,0.00017129,2]
[393244659,1762374640470,-470.40110156,0.00017148,2]
[393244660,1762374640480,-166.66,0.00017175,2]
[393244661,1762374640489,-226.71413784,0.00017177,2]
[393244662,1762374640498,-150.0,0.00017178,2]
[393244663,1762374640508,-150.0,0.00017178,2]
[393244664,1762374640518,-500.0,0.00017178,2]
[393244665,1762374640527,-500.0,0.00017178,2]
[393244666,1762374640537,-150.0,0.00017178,2]
[393244667,1762374640547,-500.0,0.00017178,2]
[393244668,1762374640557,-500.0,0.00017178,2]
[393244669,1762374640567,-5000.0,0.000172,2]
[393244670,1762374640576,-2100.0,0.000172,6]
[393244671,1762374640589,-150.0,0.00017236,2]
[393244672,1762374640598,-258.77965988,0.00017236,2]
[393244673,1762374640607,-500.0,0.00017236,2]
[393244674,1762374640617,-150.0,0.00017236,2]
[393244675,1762374640626,-150.0,0.00017236,2]
[393244676,1762374640635,-218.2152435,0.00017236,2]
[393244677,1762374640644,-500.0,0.00017236,2]
[393244678,1762374640654,-500.0,0.00017236,2]
[393244679,1762374640663,-150.0,0.00017236,2]
[393244680,1762374640673,-217.3955486,0.00017236,2]
[393244681,1762374640683,-500.0,0.00017236,2]
[393244682,1762374640692,-150.0,0.00017236,2]
[393244683,1762374640701,-150.0,0.00017236,2]
[393244684,1762374640711,-1315.0,0.00017246,2]
[393244685,1762374640720,-152.28098073,0.00017248,2]
[393244686,1762374640729,-2713.96249218,0.000173,2]
[393244687,1762374640739,-8005.61912789,0.000173,2]
[393244688,1762374640748,-2800.0,0.000173,6]
[393244689,1762374640757,-150.0,0.00017315,2]
[393244690,1762374640766,-541.19254604,0.00017315,2]
[393244691,1762374640776,-500.0,0.00017315,2]
[393244692,1762374640785,-500.0,0.00017315,2]
[393244693,1762374640794,-500.0,0.00017315,2]
[393244694,1762374640803,-300.0,0.00017342,2]
[393244695,1762374640813,-150.0,0.00017373,2]
[393244696,1762374640822,-500.0,0.00017373,2]
[393244697,1762374640833,-150.0,0.00017373,2]
[393244698,1762374640842,-150.0,0.00017373,2]
[393244699,1762374640851,-500.0,0.00017373,2]
[393244700,1762374640861,-500.0,0.00017373,2]
[393244701,1762374640870,-151.92422519,0.00017373,2]
[393244702,1762374640880,-450.0,0.00017373,2]
[393244703,1762374640889,-150.0,0.00017373,2]
[393244704,1762374640899,-150.0,0.00017373,2]
[393244705,1762374640908,-500.0,0.00017397,2]
[393244706,1762374640918,-3600.0,0.000174,6]
[393244707,1762374640927,-200.0,0.00017452,2]
[393244708,1762374640936,-500.0,0.00017452,2]
[393244709,1762374640945,-500.0,0.00017452,2]
[393244710,1762374640955,-500.0,0.00017452,2]
[393244711,1762374640964,-166.66,0.00017462,2]
[393244712,1762374640975,-152.28098073,0.00017465,2]
[393244713,1762374640985,-151.0,0.00017497,2]
[393244714,1762374640996,-2713.96249218,0.000175,2]
[393244715,1762374641008,-8005.61912789,0.000175,2]
[393244716,1762374641024,-700.0,0.000175,6]
[393244717,1762374641034,-150.0,0.0001751,2]
[393244718,1762374641044,-362.59995806,0.0001751,2]
[393244719,1762374641053,-150.0,0.0001751,2]
[393244720,1762374641062,-181.50662984,0.0001751,2]
[393244721,1762374641071,-500.0,0.0001751,2]
[393244722,1762374641081,-500.0,0.0001751,2]
[393244723,1762374641092,-150.0,0.0001751,2]
[393244724,1762374641102,-150.0,0.0001751,2]
[393244725,1762374641112,-893.58488772,0.00017538,2]
[393244726,1762374641122,-820.0,0.00017549,2]
[393244727,1762374641131,-1595.0,0.00017549,2]
[393244728,1762374641141,-816.72,0.00017549,2]
[393244729,1762374641150,-1272.0,0.00017549,2]
[393244730,1762374641159,-1188.0,0.00017549,2]
[393244731,1762374641169,-905.0,0.00017549,2]
[393244732,1762374641178,-3422.0,0.00017549,2]
[393244733,1762374641188,-574.0,0.00017549,2]
[393244734,1762374641199,-2141.0,0.00017549,2]
[393244735,1762374641208,-500.0,0.00017589,2]
[393244736,1762374641219,-500.0,0.00017589,2]
[393244737,1762374641229,-500.0,0.00017589,2]
[393244738,1762374641239,-169.85165307,0.000176,2]
[393244739,1762374641250,-700.0,0.000176,6]
[393244740,1762374641260,-151.1480798,0.00017622,7]
[393244741,1762374641270,-150.0,0.00017647,2]
[393244742,1762374641281,-224.96766427,0.00017647,2]
[393244743,1762374641292,-500.0,0.00017647,2]
[393244744,1762374641303,-500.0,0.00017647,2]
[393244745,1762374641314,-200.0,0.00017647,2]
[393244746,1762374641325,-150.0,0.00017647,2]
[393244747,1762374641339,-500.0,0.00017673,2]
[393244748,1762374641349,-500.0,0.00017673,2]
[393244749,1762374641361,-500.0,0.00017673,2]
[393244750,1762374641372,-500.0,0.00017673,2]
[393244751,1762374641383,-500.0,0.00017673,2]
[393244752,1762374641395,-500.44686822,0.00017673,2]
[393244753,1762374641406,-500.0,0.00017673,2]
[393244754,1762374641415,-500.0,0.00017673,2]
[393244755,1762374641424,-513.5397751,0.00017673,2]
[393244756,1762374641435,-495.05307951,0.00017673,2]
[393244757,1762374641444,-500.0,0.00017673,2]
[393244758,1762374641454,-152.28098073,0.00017683,2]
[393244759,1762374641660,-2500.0,0.00017689,3]
[393244760,1762374641670,-2500.0,0.00017698,3]
[393244761,1762374641680,-500.0,0.00017699,2]
[393244762,1762374641690,-7985.70399434,0.000177,2]
[393244763,1762374641700,-243487.95127409,0.000177,2]
[393244764,1762374641710,-2713.96249218,0.000177,2]
[393244765,1762374641718,-1000.0,0.000177,2]
[393244766,1762374641728,-700.0,0.000177,6]
[393244767,1762374641738,-8005.61912789,0.000177,2]
[393244768,1762374641747,-420.0,0.00017706,2]
[393244769,1762374641758,-2500.0,0.00017706,3]
[393244770,1762374641768,-2500.0,0.00017715,3]
[393244771,1762374641777,-2500.0,0.00017724,3]
[393244772,1762374641787,-500.0,0.00017726,2]
[393244773,1762374641796,-500.0,0.00017726,2]
[393244774,1762374641806,-500.0,0.00017726,2]
[393244775,1762374641816,-500.0,0.00017726,2]
[393244776,1762374641826,-268.63021333,0.00017728,2]
[393244777,1762374641839,-2500.0,0.00017733,3]
[393244778,1762374641848,-2070.0,0.0001774,2]
[393244779,1762374641857,-2500.0,0.00017742,3]
[393244780,1762374641866,-1425.0,0.0001775,2]
[393244781,1762374641876,-2500.0,0.0001775,3]
[393244782,1762374641886,-1000.0,0.00017759,2]
[393244783,1762374641895,-2500.0,0.00017759,3]
[393244784,1762374641904,-221.75791629,0.0001776,2]
[393244785,1762374641913,-1000.0,0.00017766,2]
[393244786,1762374641923,-2500.0,0.00017768,3]
[393244787,1762374641932,-265.39843377,0.00017768,3]
[393244788,1762374641941,-150.0,0.00017768,3]
[393244789,1762374641951,-209.05525812,0.00017768,3]
[393244790,1762374641960,-150.0,0.00017768,3]
[393244791,1762374641969,-225.70506935,0.00017768,3]
[393244792,1762374641979,-150.0,0.00017768,3]
[393244793,1762374641988,-150.0,0.00017768,3]
[393244794,1762374641997,-150.0,0.00017768,3]
[393244795,1762374642008,-150.0,0.00017768,3]
[393244796,1762374642022,-154.9392462,0.00017768,3]
[393244797,1762374642032,-154.27020657,0.00017768,3]
[393244798,1762374642041,-152.55008547,0.00017768,3]
[393244799,1762374642050,-150.0,0.00017768,3]
[393244800,1762374642061,-150.0,0.00017768,3]
[393244801,1762374642070,-215.35327944,0.00017768,3]
[393244802,1762374642079,-537.24,0.00017768,2]
[393244803,1762374642092,-195.0,0.00017773,2]
[393244804,1762374642102,-2500.0,0.00017773,2]
[393244805,1762374642112,-197.09164834,0.00017773,2]
[393244806,1762374642122,-300.0,0.00017773,2]
[393244807,1762374642132,-300.0,0.00017773,2]
[393244808,1762374642141,-300.0,0.00017773,2]
[393244809,1762374642150,-300.0,0.00017773,2]
[393244810,1762374642161,-300.0,0.00017773,2]
[393244811,1762374642171,-250.0,0.00017773,2]
[393244812,1762374642181,-300.0,0.00017773,2]
[393244813,1762374642190,-2500.0,0.00017777,3]
[393244814,1762374642201,-158.69063049,0.00017781,2]
[393244815,1762374642211,-450.0,0.00017784,2]
[393244816,1762374642221,-500.0,0.00017784,2]
[393244817,1762374642231,-250.0,0.00017784,2]
[393244818,1762374642241,-2500.0,0.00017786,3]
[393244819,1762374642251,-5228.0,0.00017788,2]
[393244820,1762374642261,-4317.645,0.00017792,2]
[393244821,1762374642270,-215.612,0.00017792,2]
[393244822,1762374642280,-2500.0,0.00017794,3]
[393244823,1762374642290,-1680.0,0.00017795,2]
[393244824,1762374642300,-1000.0,0.000178,2]
[393244825,1762374642311,-1000.0,0.000178,2]
[393244826,1762374642324,-700.0,0.000178,6]
[393244827,1762374642338,-2500.0,0.00017803,3]
[393244828,1762374642348,-1425.0,0.00017811,2]
[393244829,1762374642358,-162.50988356,0.00017811,2]
[393244830,1762374642368,-2500.0,0.00017812,3]
[393244831,1762374642377,-771.82819271,0.00017818,2]
[393244832,1762374642387,-250.0,0.00017818,2]
[393244833,1762374642397,-150.0,0.0001782,2]
[393244834,1762374642406,-150.0,0.0001782,2]
[393244835,1762374642416,-150.0,0.0001782,2]
[393244836,1762374642426,-150.0,0.0001782,2]
[393244838,1762374642435,-150.0,0.0001782,2]
[393244841,1762374642445,-168.061,0.0001782,2]
[393244843,1762374642454,-1425.0,0.0001782,2]
[393244844,1762374642464,-682.33005,0.0001782,2]
[393244845,1762374642473,-2500.0,0.00017821,3]
[393244846,1762374642482,-581.94,0.00017829,2]
[393244847,1762374642491,-500.0,0.00017829,2]
[393244848,1762374642500,-500.0,0.00017829,2]
[393244849,1762374642510,-500.0,0.00017829,2]
[393244850,1762374642519,-2500.0,0.0001783,3]
[393244851,1762374642528,-70145.5212233,0.0001783,2]
[393244852,1762374642537,-404.03920198,0.00017838,2]
[393244853,1762374642547,-1425.0,0.00017843,2]
[393244854,1762374642556,-1425.0,0.00017849,2]
[393244855,1762374642565,-500.0,0.00017855,2]
[393244856,1762374642575,-200.0,0.00017855,2]
[393244857,1762374642588,-500.0,0.00017856,2]
[393244858,1762374642599,-500.0,0.00017856,2]
[393244859,1762374642608,-200.0,0.00017856,2]
[393244860,1762374642618,-200.0,0.00017856,2]
[393244861,1762374642627,-1425.0,0.00017859,2]
[393244862,1762374642636,-500.0,0.00017863,2]
[393244863,1762374642646,-608.96050936,0.00017863,2]
[393244865,1762374642655,-500.0,0.00017863,2]
[393244866,1762374642665,-158.69063049,0.00017863,2]
[393244867,1762374642674,-2500.0,0.00017874,3]
[393244868,1762374642683,-150.0,0.00017879,2]
[393244869,1762374642691,-192.59474214,0.0001788,2]
[393244870,1762374642700,-1425.0,0.00017881,2]
[393244871,1762374642709,-2500.0,0.00017882,3]
[393244872,1762374642719,-2070.0,0.00017884,2]
[393244873,1762374642728,-2500.0,0.00017891,3]
[393244874,1762374642741,-2936.32406618,0.000179,2]
[393244875,1762374642751,-239.56426196,0.000179,2]
[393244876,1762374642761,-2713.96249218,0.000179,2]
[393244877,1762374642771,-1063.0,0.000179,6]
[393244878,1762374642780,-1815.0,0.000179,2]
[393244879,1762374642790,-812.65011104,0.000179,3]
[393244880,1762374642800,-152.28098073,0.000179,2]
[393244881,1762374642808,-2500.0,0.000179,3]
[393244882,1762374642818,-8005.61912789,0.000179,2]
[393244883,1762374642828,-233.00074518,0.000179,2]
[393244884,1762374642842,-5396.62361844,0.000179,2]
[393244885,1762374642851,-3810.0,0.000179,2]
[393244886,1762374642861,-150.0,0.00017905,3]
[393244887,1762374642871,-150.0,0.00017905,3]
[393244888,1762374642881,-150.0,0.00017905,3]
[393244889,1762374642891,-150.0,0.00017905,3]
[393244890,1762374642900,-150.0,0.00017905,3]
[393244891,1762374642910,-3630.0,0.00017914,2]
[393244892,1762374642919,-500.0,0.00017921,2]
[393244893,1762374642928,-682.33005,0.0001793,2]
[393244894,1762374642938,-158.69063049,0.00017945,2]
[393244895,1762374642947,-292.64,0.00017951,2]
[393244896,1762374642957,-281.77206103,0.00017963,2]
[393244897,1762374642967,-1043.0,0.00017973,2]
[393244898,1762374642976,-500.0,0.00017973,2]
[393244899,1762374642985,-500.0,0.00017973,2]
[393244900,1762374642995,-500.0,0.00017973,2]
[393244901,1762374643004,-500.0,0.00017973,2]
[393244902,1762374643019,-527.35537018,0.00017973,2]
[393244904,1762374643028,-500.0,0.00017973,2]
[393244905,1762374643038,-500.0,0.00017973,2]
[393244906,1762374643047,-500.0,0.00017973,2]
[393244907,1762374643057,-500.0,0.00017973,2]
[393244908,1762374643066,-500.0,0.00017973,2]
[393244909,1762374643076,-500.0,0.00017973,2]
[393244910,1762374643088,-500.0,0.00017973,2]
[393244911,1762374643098,-500.0,0.00017973,2]
[393244912,1762374643109,-415.19,0.00017973,2]
[393244913,1762374643119,-415.63,0.00017973,2]
[393244914,1762374643128,-150.0,0.00017977,2]
[393244915,1762374643139,-281.77206103,0.0001799,2]
[393244916,1762374643148,-281.77206103,0.0001799,2]
[393244917,1762374643158,-549.09,0.0001799,2]
[393244918,1762374643167,-1040.9103192,0.00017999,5]
[393244919,1762374643177,-182.14042067,0.00017999,5]
[393244920,1762374643187,-1040.9103192,0.00017999,5]
[393244921,1762374643197,-1040.9103192,0.00017999,5]
[393244922,1762374643206,-1040.91031921,0.00017999,5]
[393244923,1762374643216,-156.833,0.00017999,2]
[393244924,1762374643226,-581.94,0.00017999,2]
[393244925,1762374643236,-581.94,0.00017999,2]
[393244927,1762374643245,-581.94,0.00017999,2]
[393244928,1762374643255,-581.94,0.00017999,2]
[393244929,1762374643264,-581.94,0.00017999,2]
[393244930,1762374643273,-581.94,0.00017999,2]
[393244931,1762374643282,-581.94,0.00017999,2]
[393244932,1762374643292,-581.94,0.00017999,2]
[393244933,1762374643301,-581.94,0.00017999,2]
[393244934,1762374643311,-581.94,0.00017999,2]
[393244935,1762374643323,-581.94,0.00017999,2]
[393244936,1762374643333,-581.94,0.00017999,2]
[393244937,1762374643344,-581.94,0.00017999,2]
[393244938,1762374643354,-581.94,0.00017999,2]
[393244939,1762374643363,-581.94,0.00017999,2]
[393244940,1762374643374,-581.94,0.00017999,2]
[393244941,1762374643383,-581.94,0.00017999,2]
[393244942,1762374643393,-581.94,0.00017999,2]
[393244943,1762374643402,-581.94,0.00017999,2]
[393244944,1762374643412,-581.94,0.00017999,2]
[393244945,1762374643421,-582.08275705,0.00017999,2]
[393244946,1762374643431,-500.0,0.00017999,2]
[393244947,1762374643441,-500.0,0.00017999,2]
[393244948,1762374643451,-300.0,0.00017999,2]
[393244949,1762374643460,-300.0,0.00017999,2]
[393244950,1762374643470,-300.0,0.00017999,2]
[393244951,1762374643480,-666.0,0.00017999,2]
[393244952,1762374643490,-666.0,0.00017999,2]
[393244953,1762374643499,-300.0,0.00017999,2]
[393244954,1762374643508,-500.0,0.00017999,2]
[393244955,1762374643518,-500.0,0.00017999,2]
[393244956,1762374643531,-500.0,0.00017999,2]
[393244957,1762374643540,-500.0,0.00017999,2]
[393244958,1762374643550,-500.0,0.00017999,2]
[393244959,1762374643559,-500.0,0.00017999,2]
[393244960,1762374643569,-500.0,0.00017999,2]
[393244961,1762374643578,-500.0,0.00017999,2]
[393244962,1762374643590,-500.0,0.00017999,2]
[393244963,1762374643599,-500.0,0.00017999,2]
[393244964,1762374643609,-500.0,0.00017999,2]
[393244965,1762374643618,-500.0,0.00017999,2]
[393244966,1762374643628,-446.22175089,0.00017999,2]
[393244967,1762374643638,-300.0,0.00017999,2]
[393244968,1762374643647,-666.0,0.00017999,2]
[393244969,1762374643656,-261.0,0.00018,2]
[393244970,1762374643666,-500.0,0.00018,2]
[393244971,1762374643676,-871149.44662485,0.00018,2]
[393244972,1762374643897,-441.3076189,0.00018,2]
[393244973,1762374643908,-829.39523851,0.00018,2]
[393244982,1762374749662,10000.01,0.000161,2]
[393244983,1762374749688,10000.01,0.000161,2]
[393244984,1762374749711,10000.01,0.000161,2]
[393244985,1762374749736,10000.01,0.000161,2]
[393244986,1762374749761,10000.01,0.000161,2]
[393244987,1762374749783,10000.01,0.000161,2]
[393244988,1762374749806,10000.01,0.000161,2]
[393244989,1762374749828,10000.01,0.000161,2]
[393244990,1762374749851,10000.01,0.000161,2]
[393244991,1762374749873,10000.01,0.000161,2]
[393244992,1762374750511,-444.03740256,0.000161,2]
[393244993,1762374753416,-560.37778768,0.00016099,2]
[393244994,1762374753445,-259.95854252,0.00016099,2]
[393244995,1762374753676,-204.876969,0.00016099,2]
[393244996,1762374753874,-500.0,0.00016099,2]
[393244997,1762374753907,-500.0,0.00016099,2]
[393244998,1762374754043,-500.0,0.00016099,2]
[393244999,1762374754078,-500.0,0.00016099,2]
[393245000,1762374754226,-354.75469372,0.000161,2]
[393245001,1762374754469,-284.0586014,0.00016099,2]
[393245002,1762374763501,-4167.5907445,0.000161,2]
[393245003,1762374763514,-10000.01,0.000161,2]
[393245004,1762374763528,-10000.01,0.000161,2]
[393245005,1762374763556,-10000.01,0.000161,2]
[393245006,1762374763688,-10000.01,0.000161,2]
[393245007,1762374763842,-10000.01,0.000161,2]
[393245008,1762374765670,-10000.01,0.000161,2]
[393245009,1762374765785,-10000.01,0.000161,2]
[393245010,1762374765910,-10000.01,0.000161,2]